[Event "Titled Tuesday Blitz December 06 Early 2022"]
[White "Tay, Junior"]
[Black "Krzywda, Andrzej"]
[WhiteFideId "5800439"]
[BlackFideId "1114565"]
[WhiteElo "2216"]
[BlackElo "2149"]
[Result "1-0"]
[Round "07"]
[TimeControl "180+1"]
[Date "2022.12.07"]
[WhiteClock "0:00:50"]
[BlackClock "0:00:02"]

1. e4 {[%clk 0:03:00]}  c5 {[%clk 0:02:58]} 2. Nf3 {[%clk 0:03:01]}  d6 {[%clk 0:02:58]} 3. d4 {[%clk 0:03:01]}  cxd4 {[%clk 0:02:59]} 4. Qxd4 {[%clk 0:03:01]}  Nf6 {[%clk 0:02:57]} 5. e5 {[%clk 0:03:01]}  Nc6 {[%clk 0:02:46]} 6. Bb5 {[%clk 0:03:00]}  Qa5+ {[%clk 0:02:39]} 7. Nc3 {[%clk 0:03:00]}  dxe5 {[%clk 0:02:39]} 8. Bxc6+ {[%clk 0:02:58]}  bxc6 {[%clk 0:02:37]} 9. Nxe5 {[%clk 0:02:58]}  Bb7 {[%clk 0:02:17]} 10. Bd2 {[%clk 0:02:55]}  Rd8 {[%clk 0:02:12]} 11. Qe3 {[%clk 0:02:47]}  Qb6 {[%clk 0:02:05]} 12. Qe2 {[%clk 0:02:36]}  e6 {[%clk 0:01:54]} 13. O-O-O {[%clk 0:02:32]}  Be7 {[%clk 0:01:52]} 14. Be3 {[%clk 0:02:20]}  Rxd1+ {[%clk 0:01:46]} 15. Rxd1 {[%clk 0:02:19]}  Qa5 {[%clk 0:01:47]} 16. Bg5 {[%clk 0:02:11]}  O-O {[%clk 0:01:39]} 17. Bxf6 {[%clk 0:02:04]}  Bxf6 {[%clk 0:01:40]} 18. Nd7 {[%clk 0:02:01]}  Bg5+ {[%clk 0:01:34]} 19. f4 {[%clk 0:01:54]}  Bxf4+ {[%clk 0:01:29]} 20. Kb1 {[%clk 0:01:54]}  Rd8 {[%clk 0:01:20]} 21. Qe4 {[%clk 0:01:51]}  Qc7 {[%clk 0:00:59]} 22. Nf6+ {[%clk 0:01:35]}  gxf6 {[%clk 0:00:59]} 23. Rxd8+ {[%clk 0:01:35]}  Qxd8 {[%clk 0:00:59]} 24. Qxf4 {[%clk 0:01:36]}  c5 {[%clk 0:00:51]} 25. b3 {[%clk 0:01:35]}  Bc6 {[%clk 0:00:33]} 26. Kb2 {[%clk 0:01:35]}  Qd4 {[%clk 0:00:31]} 27. Qb8+ {[%clk 0:01:34]}  Kg7 {[%clk 0:00:30]} 28. Qxa7 {[%clk 0:01:35]}  Bxg2 {[%clk 0:00:28]} 29. a4 {[%clk 0:01:28]}  f5 {[%clk 0:00:28]} 30. Qe7 {[%clk 0:01:24]}  Kg6 {[%clk 0:00:24]} 31. Qf8 {[%clk 0:01:18]}  Be4 {[%clk 0:00:18]} 32. Qg8+ {[%clk 0:01:12]}  Kh6 {[%clk 0:00:17]} 33. Qxf7 {[%clk 0:01:08]}  Bd5 {[%clk 0:00:08]} 34. a5 {[%clk 0:01:03]}  f4 {[%clk 0:00:09]} 35. a6 {[%clk 0:01:02]}  f3 {[%clk 0:00:09]} 36. a7 {[%clk 0:01:02]}  f2 {[%clk 0:00:09]} 37. h4 {[%clk 0:00:56]}  Qxh4 {[%clk 0:00:03]} 38. Nxd5 {[%clk 0:00:54]}  Qd4+ {[%clk 0:00:02]} 39. Ka2 {[%clk 0:00:51]}  Qxd5 {[%clk 0:00:01]} 40. Qf6+ {[%clk 0:00:52]}  Kh5 {[%clk 0:00:01]} 41. Qxf2 {[%clk 0:00:51]}  Qa8 {[%clk 0:00:01]} 42. Qh2+ {[%clk 0:00:50]}  Kg4 {[%clk 0:00:02]} 43. Qb8 {[%clk 0:00:50]} 1-0


[Site "https://www.chess.com"]

[Event "Titled Tuesday Blitz December 06 Early 2022"]
[White "Timofeev, Artyom"]
[Black "Belozerov, Andrei"]
[WhiteFideId "4140419"]
[BlackFideId "4120213"]
[WhiteElo "2586"]
[BlackElo "2360"]
[Result "1-0"]
[Round "07"]
[TimeControl "180+1"]
[Date "2022.12.06"]
[WhiteClock "0:00:59"]
[BlackClock "0:00:12"]

1. d4 {[%clk 0:03:00]}  d5 {[%clk 0:02:59]} 2. Nc3 {[%clk 0:03:00]}  Nf6 {[%clk 0:02:57]} 3. Bf4 {[%clk 0:02:59]}  c5 {[%clk 0:02:57]} 4. e3 {[%clk 0:02:59]}  cxd4 {[%clk 0:02:56]} 5. exd4 {[%clk 0:02:59]}  Bg4 {[%clk 0:02:56]} 6. f3 {[%clk 0:02:59]}  Bd7 {[%clk 0:02:56]} 7. Bd3 {[%clk 0:02:54]}  Nc6 {[%clk 0:02:54]} 8. Nge2 {[%clk 0:02:54]}  Nb4 {[%clk 0:02:49]} 9. g4 {[%clk 0:02:50]}  e6 {[%clk 0:02:46]} 10. h4 {[%clk 0:02:50]}  Qb6 {[%clk 0:02:35]} 11. h5 {[%clk 0:02:48]}  h6 {[%clk 0:02:34]} 12. Qd2 {[%clk 0:02:46]}  Rc8 {[%clk 0:02:26]} 13. O-O-O {[%clk 0:02:43]}  Qa5 {[%clk 0:02:20]} 14. Kb1 {[%clk 0:02:41]}  b5 {[%clk 0:02:14]} 15. Nc1 {[%clk 0:02:33]}  Qb6 {[%clk 0:01:52]} 16. Be5 {[%clk 0:02:29]}  Be7 {[%clk 0:01:43]} 17. Rdg1 {[%clk 0:02:16]}  Nc6 {[%clk 0:01:38]} 18. g5 {[%clk 0:02:05]}  hxg5 {[%clk 0:01:29]} 19. Rxg5 {[%clk 0:02:05]}  b4 {[%clk 0:01:22]} 20. N3e2 {[%clk 0:02:00]}  Bf8 {[%clk 0:01:08]} 21. Nf4 {[%clk 0:01:41]}  Nxe5 {[%clk 0:01:00]} 22. dxe5 {[%clk 0:01:40]}  Ng8 {[%clk 0:00:58]} 23. Qg2 {[%clk 0:01:33]}  Qe3 {[%clk 0:00:50]} 24. Rxg7 {[%clk 0:01:22]}  Qxf4 {[%clk 0:00:34]} 25. Rxg8 {[%clk 0:01:21]}  Qxe5 {[%clk 0:00:34]} 26. Rxh8 {[%clk 0:01:16]}  Qxh8 {[%clk 0:00:34]} 27. h6 {[%clk 0:01:17]}  Ke7 {[%clk 0:00:15]} 28. Qg5+ {[%clk 0:01:17]}  Qf6 {[%clk 0:00:15]} 29. f4 {[%clk 0:01:17]}  a5 {[%clk 0:00:14]} 30. Ne2 {[%clk 0:01:16]}  a4 {[%clk 0:00:13]} 31. Nd4 {[%clk 0:01:11]}  Qxg5 {[%clk 0:00:12]} 32. fxg5 {[%clk 0:01:11]}  e5 {[%clk 0:00:12]} 33. Nf5+ {[%clk 0:01:11]}  Bxf5 {[%clk 0:00:12]} 34. Bxf5 {[%clk 0:01:11]}  Rd8 {[%clk 0:00:13]} 35. a3 {[%clk 0:01:09]}  bxa3 {[%clk 0:00:12]} 36. bxa3 {[%clk 0:01:09]}  e4 {[%clk 0:00:12]} 37. Rf1 {[%clk 0:01:04]}  Kd6 {[%clk 0:00:12]} 38. Bg4 {[%clk 0:01:02]}  Be7 {[%clk 0:00:12]} 39. Rxf7 {[%clk 0:00:58]}  Bxg5 {[%clk 0:00:11]} 40. h7 {[%clk 0:00:59]}  Ke5 {[%clk 0:00:11]} 41. Rf5+ {[%clk 0:00:59]}  Kd4 {[%clk 0:00:11]} 42. Rxg5 {[%clk 0:01:00]}  Ke3 {[%clk 0:00:12]} 43. Rg8 {[%clk 0:00:59]} 1-0


[Site "https://www.chess.com"]

[Event "Titled Tuesday Blitz December 06 Early 2022"]
[White "Tologon tegin, Semetei"]
[Black "Miszler, Levente"]
[WhiteFideId "13800574"]
[BlackFideId "763276"]
[WhiteElo "2513"]
[BlackElo "2402"]
[Result "1-0"]
[Round "07"]
[TimeControl "180+1"]
[Date "2022.12.07"]
[WhiteClock "0:00:16"]
[BlackClock "0:00:06"]

1. e4 {[%clk 0:02:46]}  e6 {[%clk 0:02:59]} 2. d4 {[%clk 0:02:46]}  d5 {[%clk 0:02:59]} 3. e5 {[%clk 0:02:46]}  f6 {[%clk 0:02:59]} 4. Nf3 {[%clk 0:02:44]}  c5 {[%clk 0:02:55]} 5. c3 {[%clk 0:02:44]}  Nc6 {[%clk 0:02:55]} 6. Be2 {[%clk 0:02:37]}  Qc7 {[%clk 0:02:55]} 7. Bf4 {[%clk 0:02:34]}  fxe5 {[%clk 0:02:55]} 8. dxe5 {[%clk 0:02:35]}  g6 {[%clk 0:02:55]} 9. O-O {[%clk 0:02:34]}  Bg7 {[%clk 0:02:55]} 10. Re1 {[%clk 0:02:26]}  Nge7 {[%clk 0:02:55]} 11. Nbd2 {[%clk 0:02:19]}  O-O {[%clk 0:02:54]} 12. Bg3 {[%clk 0:02:20]}  Nf5 {[%clk 0:02:51]} 13. c4 {[%clk 0:02:13]}  Nxg3 {[%clk 0:02:50]} 14. hxg3 {[%clk 0:02:13]}  d4 {[%clk 0:02:39]} 15. Bd3 {[%clk 0:02:03]}  Nxe5 {[%clk 0:02:36]} 16. Nxe5 {[%clk 0:02:02]}  Bxe5 {[%clk 0:02:37]} 17. f4 {[%clk 0:01:53]}  Bg7 {[%clk 0:02:34]} 18. Nf3 {[%clk 0:01:53]}  Bd7 {[%clk 0:02:23]} 19. Qd2 {[%clk 0:01:47]}  Rae8 {[%clk 0:02:22]} 20. Ne5 {[%clk 0:01:46]}  Bc6 {[%clk 0:02:17]} 21. g4 {[%clk 0:01:27]}  b6 {[%clk 0:01:47]} 22. g5 {[%clk 0:01:21]}  Ba8 {[%clk 0:01:43]} 23. g3 {[%clk 0:01:18]}  Rf5 {[%clk 0:00:46]} 24. Bxf5 {[%clk 0:01:14]}  exf5 {[%clk 0:00:47]} 25. Nd3 {[%clk 0:01:07]}  Re4 {[%clk 0:00:44]} 26. Nf2 {[%clk 0:01:05]}  Qb7 {[%clk 0:00:39]} 27. Nxe4 {[%clk 0:01:04]}  fxe4 {[%clk 0:00:40]} 28. Kh2 {[%clk 0:01:03]}  e3 {[%clk 0:00:35]} 29. Qe2 {[%clk 0:00:34]}  d3 {[%clk 0:00:35]} 30. Qf1 {[%clk 0:00:34]}  e2 {[%clk 0:00:19]} 31. Rxe2 {[%clk 0:00:30]}  dxe2 {[%clk 0:00:20]} 32. Qxe2 {[%clk 0:00:31]}  Qe4 {[%clk 0:00:07]} 33. Re1 {[%clk 0:00:27]}  Qxe2+ {[%clk 0:00:05]} 34. Rxe2 {[%clk 0:00:28]}  Kf7 {[%clk 0:00:06]} 35. b3 {[%clk 0:00:25]}  Bd4 {[%clk 0:00:06]} 36. Kh3 {[%clk 0:00:21]}  Bf3 {[%clk 0:00:06]} 37. Re1 {[%clk 0:00:20]}  Bc6 {[%clk 0:00:06]} 38. g4 {[%clk 0:00:19]}  Bd7 {[%clk 0:00:05]} 39. Rf1 {[%clk 0:00:20]}  Bc6 {[%clk 0:00:05]} 40. f5 {[%clk 0:00:20]}  Be4 {[%clk 0:00:04]} 41. Kg3 {[%clk 0:00:19]}  Be5+ {[%clk 0:00:03]} 42. Kh4 {[%clk 0:00:20]}  Bd4 {[%clk 0:00:03]} 43. Kg3 {[%clk 0:00:16]}  Be5+ {[%clk 0:00:03]} 44. Kh4 {[%clk 0:00:16]}  Bd4 {[%clk 0:00:03]} 45. Kh3 {[%clk 0:00:16]}  Be5 {[%clk 0:00:03]} 46. Re1 {[%clk 0:00:16]}  Bc3 {[%clk 0:00:02]} 47. Rxe4 {[%clk 0:00:15]}  Bd4 {[%clk 0:00:02]} 48. f6 {[%clk 0:00:15]}  Bc3 {[%clk 0:00:01]} 49. Re7+ {[%clk 0:00:15]}  Kf8 {[%clk 0:00:01]} 50. Rxa7 {[%clk 0:00:16]}  Bd2 {[%clk 0:00:02]} 51. Kh4 {[%clk 0:00:15]}  Be1+ {[%clk 0:00:02]} 52. Kh3 {[%clk 0:00:16]}  Bd2 {[%clk 0:00:03]} 53. Rxh7 {[%clk 0:00:16]}  Bxg5 {[%clk 0:00:03]} 54. Rb7 {[%clk 0:00:16]}  Bxf6 {[%clk 0:00:04]} 55. Rxb6 {[%clk 0:00:16]}  Bd4 {[%clk 0:00:05]} 56. Rxg6 {[%clk 0:00:16]}  Kf7 {[%clk 0:00:06]} 57. Rb6 {[%clk 0:00:16]} 1-0


[Site "https://www.chess.com"]

[Event "Titled Tuesday Blitz December 06 Early 2022"]
[White "Tsatsalashvili, Keti"]
[Black "Simonovic, Miroslav"]
[WhiteFideId "13603434"]
[BlackFideId "919152"]
[WhiteElo "2220"]
[BlackElo "2057"]
[Result "1-0"]
[Round "07"]
[TimeControl "180+1"]
[Date "2022.12.07"]
[WhiteClock "0:00:31"]
[BlackClock "0:00:01"]

1. d4 {[%clk 0:03:00]}  Nf6 {[%clk 0:02:59]} 2. c4 {[%clk 0:03:00]}  c5 {[%clk 0:03:00]} 3. d5 {[%clk 0:03:00]}  b5 {[%clk 0:03:00]} 4. cxb5 {[%clk 0:03:00]}  a6 {[%clk 0:03:01]} 5. b6 {[%clk 0:03:00]}  d6 {[%clk 0:03:01]} 6. Nc3 {[%clk 0:03:00]}  Nbd7 {[%clk 0:03:02]} 7. a4 {[%clk 0:02:59]}  a5 {[%clk 0:03:00]} 8. e4 {[%clk 0:02:59]}  g6 {[%clk 0:03:00]} 9. Bb5 {[%clk 0:02:57]}  Bg7 {[%clk 0:02:57]} 10. Nf3 {[%clk 0:02:34]}  O-O {[%clk 0:02:56]} 11. O-O {[%clk 0:02:34]}  Qxb6 {[%clk 0:02:45]} 12. Nd2 {[%clk 0:02:29]}  Ba6 {[%clk 0:02:36]} 13. Nc4 {[%clk 0:02:27]}  Qb8 {[%clk 0:02:03]} 14. Re1 {[%clk 0:02:17]}  Bxb5 {[%clk 0:01:45]} 15. axb5 {[%clk 0:02:10]}  Ng4 {[%clk 0:01:19]} 16. Qxg4 {[%clk 0:02:01]}  Ne5 {[%clk 0:01:14]} 17. Nxe5 {[%clk 0:01:57]}  Bxe5 {[%clk 0:01:15]} 18. Qe2 {[%clk 0:01:53]}  Rc8 {[%clk 0:01:09]} 19. Qc4 {[%clk 0:01:51]}  Qb7 {[%clk 0:01:00]} 20. Bd2 {[%clk 0:01:42]}  Qd7 {[%clk 0:00:58]} 21. Ra4 {[%clk 0:01:41]}  Qg4 {[%clk 0:00:55]} 22. h3 {[%clk 0:01:32]}  Qh5 {[%clk 0:00:54]} 23. Rea1 {[%clk 0:01:28]}  Rf8 {[%clk 0:00:52]} 24. Rxa5 {[%clk 0:01:26]}  Rxa5 {[%clk 0:00:53]} 25. Rxa5 {[%clk 0:01:26]}  f5 {[%clk 0:00:53]} 26. exf5 {[%clk 0:01:21]}  Bxc3 {[%clk 0:00:37]} 27. Bxc3 {[%clk 0:01:17]}  Qd1+ {[%clk 0:00:37]} 28. Qf1 {[%clk 0:01:17]}  Qxd5 {[%clk 0:00:36]} 29. fxg6 {[%clk 0:01:14]}  hxg6 {[%clk 0:00:35]} 30. b6 {[%clk 0:01:14]}  Qb3 {[%clk 0:00:25]} 31. Rb5 {[%clk 0:01:13]}  Qd5 {[%clk 0:00:17]} 32. Qe2 {[%clk 0:01:02]}  e6 {[%clk 0:00:13]} 33. Qg4 {[%clk 0:00:50]}  Kf7 {[%clk 0:00:06]} 34. Qh4 {[%clk 0:00:40]}  Qd1+ {[%clk 0:00:05]} 35. Kh2 {[%clk 0:00:40]}  Ke8 {[%clk 0:00:04]} 36. b7 {[%clk 0:00:37]}  Kd7 {[%clk 0:00:04]} 37. b8=Q {[%clk 0:00:34]}  Rxb8 {[%clk 0:00:05]} 38. Rxb8 {[%clk 0:00:35]}  Kc6 {[%clk 0:00:06]} 39. Qg3 {[%clk 0:00:34]}  e5 {[%clk 0:00:03]} 40. Rg8 {[%clk 0:00:32]}  Qc2 {[%clk 0:00:01]} 41. Rxg6 {[%clk 0:00:31]} 1-0


[Site "https://www.chess.com"]

[Event "Titled Tuesday Blitz December 06 Early 2022"]
[White "Turzo, Attila"]
[Black "Farmani Anosheh, Armin"]
[WhiteFideId "704954"]
[BlackFideId "24613240"]
[WhiteElo "2471"]
[BlackElo "2384"]
[Result "1-0"]
[Round "07"]
[TimeControl "180+1"]
[Date "2022.12.07"]
[WhiteClock "0:00:32"]
[BlackClock "0:00:01"]

1. d4 {[%clk 0:03:00]}  Nf6 {[%clk 0:02:59]} 2. c4 {[%clk 0:03:00]}  e6 {[%clk 0:03:00]} 3. Nf3 {[%clk 0:03:00]}  d5 {[%clk 0:03:00]} 4. Nc3 {[%clk 0:03:00]}  Bb4 {[%clk 0:03:00]} 5. cxd5 {[%clk 0:02:58]}  exd5 {[%clk 0:03:00]} 6. Bg5 {[%clk 0:02:59]}  h6 {[%clk 0:02:57]} 7. Bxf6 {[%clk 0:02:55]}  Qxf6 {[%clk 0:02:57]} 8. Qa4+ {[%clk 0:02:55]}  Nc6 {[%clk 0:02:57]} 9. e3 {[%clk 0:02:53]}  O-O {[%clk 0:02:48]} 10. Be2 {[%clk 0:02:53]}  Be6 {[%clk 0:02:40]} 11. O-O {[%clk 0:02:53]}  a6 {[%clk 0:02:38]} 12. Rac1 {[%clk 0:02:52]}  Bd6 {[%clk 0:02:35]} 13. Rfe1 {[%clk 0:02:49]}  Rad8 {[%clk 0:02:11]} 14. a3 {[%clk 0:02:44]}  g5 {[%clk 0:01:57]} 15. Nd2 {[%clk 0:02:39]}  Bxh2+ {[%clk 0:01:28]} 16. Kxh2 {[%clk 0:02:38]}  Qxf2 {[%clk 0:01:28]} 17. Nf1 {[%clk 0:02:17]}  g4 {[%clk 0:01:20]} 18. Qc2 {[%clk 0:02:07]}  Qh4+ {[%clk 0:01:15]} 19. Kg1 {[%clk 0:02:06]}  g3 {[%clk 0:01:08]} 20. Bf3 {[%clk 0:02:04]}  Ne7 {[%clk 0:01:08]} 21. e4 {[%clk 0:01:57]}  c6 {[%clk 0:00:54]} 22. Ne2 {[%clk 0:01:52]}  f5 {[%clk 0:00:42]} 23. exd5 {[%clk 0:01:43]}  Bxd5 {[%clk 0:00:43]} 24. Nfxg3 {[%clk 0:01:25]}  Bxf3 {[%clk 0:00:31]} 25. gxf3 {[%clk 0:01:26]}  f4 {[%clk 0:00:31]} 26. Nf1 {[%clk 0:01:11]}  Kh8 {[%clk 0:00:28]} 27. Nh2 {[%clk 0:01:07]}  Rg8+ {[%clk 0:00:26]} 28. Kh1 {[%clk 0:01:07]}  Rg5 {[%clk 0:00:21]} 29. Nxf4 {[%clk 0:01:00]}  Qxf4 {[%clk 0:00:19]} 30. Rxe7 {[%clk 0:01:00]}  Rf5 {[%clk 0:00:15]} 31. Rce1 {[%clk 0:00:57]}  Rg8 {[%clk 0:00:14]} 32. Re8 {[%clk 0:00:51]}  Rg5 {[%clk 0:00:12]} 33. Rxg8+ {[%clk 0:00:49]}  Rxg8 {[%clk 0:00:12]} 34. Rg1 {[%clk 0:00:47]}  Rxg1+ {[%clk 0:00:09]} 35. Kxg1 {[%clk 0:00:48]}  Qxd4+ {[%clk 0:00:09]} 36. Qf2 {[%clk 0:00:47]}  Qf4 {[%clk 0:00:08]} 37. Ng4 {[%clk 0:00:44]}  h5 {[%clk 0:00:08]} 38. Ne3 {[%clk 0:00:42]}  Qd4 {[%clk 0:00:05]} 39. Ng2 {[%clk 0:00:41]}  Qd3 {[%clk 0:00:05]} 40. f4 {[%clk 0:00:38]}  Qf5 {[%clk 0:00:05]} 41. Kh2 {[%clk 0:00:35]}  Kh7 {[%clk 0:00:03]} 42. Qh4 {[%clk 0:00:36]}  Qc5 {[%clk 0:00:01]} 43. Qf6 {[%clk 0:00:32]} 1-0


[Site "https://www.chess.com"]

[Event "Titled Tuesday Blitz December 06 Early 2022"]
[White "Vidit, Santosh Gujrathi"]
[Black "Moroni, Luca Jr"]
[WhiteFideId "5029465"]
[BlackFideId "865834"]
[WhiteElo "2669"]
[BlackElo "2573"]
[Result "1-0"]
[Round "07"]
[TimeControl "180+1"]
[Date "2022.12.06"]
[WhiteClock "0:00:14"]
[BlackClock "0:00:06"]

1. e4 {[%clk 0:03:00]}  d6 {[%clk 0:02:59]} 2. d4 {[%clk 0:03:00]}  e5 {[%clk 0:03:00]} 3. Nf3 {[%clk 0:03:00]}  exd4 {[%clk 0:03:00]} 4. Nxd4 {[%clk 0:02:59]}  Nf6 {[%clk 0:03:00]} 5. Nc3 {[%clk 0:02:58]}  Be7 {[%clk 0:03:00]} 6. Be2 {[%clk 0:02:45]}  O-O {[%clk 0:03:01]} 7. O-O {[%clk 0:02:45]}  Re8 {[%clk 0:03:01]} 8. Re1 {[%clk 0:02:42]}  Bf8 {[%clk 0:03:01]} 9. Bf1 {[%clk 0:02:39]}  c6 {[%clk 0:03:01]} 10. Bf4 {[%clk 0:02:30]}  a5 {[%clk 0:03:00]} 11. a4 {[%clk 0:02:27]}  Na6 {[%clk 0:02:59]} 12. Qd2 {[%clk 0:02:21]}  Nc5 {[%clk 0:02:57]} 13. f3 {[%clk 0:02:21]}  Qb6 {[%clk 0:02:55]} 14. Be3 {[%clk 0:02:21]}  Qc7 {[%clk 0:02:54]} 15. Rad1 {[%clk 0:02:20]}  Bd7 {[%clk 0:02:53]} 16. Nb3 {[%clk 0:02:15]}  Nxb3 {[%clk 0:02:52]} 17. cxb3 {[%clk 0:02:16]}  Be6 {[%clk 0:02:45]} 18. Qc2 {[%clk 0:02:04]}  Rac8 {[%clk 0:02:29]} 19. Bd4 {[%clk 0:01:50]}  d5 {[%clk 0:02:01]} 20. e5 {[%clk 0:01:32]}  Nd7 {[%clk 0:01:56]} 21. f4 {[%clk 0:01:32]}  g6 {[%clk 0:01:44]} 22. Bd3 {[%clk 0:01:27]}  Bg7 {[%clk 0:01:33]} 23. Rf1 {[%clk 0:01:11]}  Bg4 {[%clk 0:01:07]} 24. Rde1 {[%clk 0:01:10]}  Nf8 {[%clk 0:01:03]} 25. Qf2 {[%clk 0:00:54]}  Ne6 {[%clk 0:01:00]} 26. Bb6 {[%clk 0:00:54]}  Qd7 {[%clk 0:01:00]} 27. Bxa5 {[%clk 0:00:48]}  Bf5 {[%clk 0:00:50]} 28. Bxf5 {[%clk 0:00:47]}  gxf5 {[%clk 0:00:49]} 29. Bb6 {[%clk 0:00:47]}  d4 {[%clk 0:00:49]} 30. Ne2 {[%clk 0:00:43]}  c5 {[%clk 0:00:47]} 31. Ng3 {[%clk 0:00:43]}  Rc6 {[%clk 0:00:35]} 32. a5 {[%clk 0:00:42]}  Nf8 {[%clk 0:00:34]} 33. b4 {[%clk 0:00:30]}  Ng6 {[%clk 0:00:22]} 34. bxc5 {[%clk 0:00:29]}  d3 {[%clk 0:00:22]} 35. Rd1 {[%clk 0:00:27]}  Rxb6 {[%clk 0:00:20]} 36. axb6 {[%clk 0:00:26]}  Rd8 {[%clk 0:00:20]} 37. Rd2 {[%clk 0:00:25]}  Bf8 {[%clk 0:00:20]} 38. Rfd1 {[%clk 0:00:23]}  Qb5 {[%clk 0:00:20]} 39. Rc1 {[%clk 0:00:19]}  Rd5 {[%clk 0:00:19]} 40. Kh1 {[%clk 0:00:17]}  Bxc5 {[%clk 0:00:19]} 41. Qf3 {[%clk 0:00:17]}  Ne7 {[%clk 0:00:11]} 42. Nxf5 {[%clk 0:00:15]}  Nxf5 {[%clk 0:00:05]} 43. Qxd5 {[%clk 0:00:14]}  Qxb6 {[%clk 0:00:06]} 44. Qxc5 {[%clk 0:00:14]} 1-0


[Site "https://www.chess.com"]

[Event "Titled Tuesday Blitz December 06 Early 2022"]
[White "Vifleemskaia, Svetlana"]
[Black "Moskvin, Anatoly"]
[WhiteFideId "4129490"]
[BlackFideId "24199990"]
[WhiteElo "2379"]
[BlackElo "2453"]
[Result "0-1"]
[Round "07"]
[TimeControl "180+1"]
[Date "2022.12.07"]
[WhiteClock "0:00:08"]
[BlackClock "0:00:08"]

1. d4 {[%clk 0:02:43]}  g6 {[%clk 0:00:53]} 2. c4 {[%clk 0:02:41]}  Bg7 {[%clk 0:00:54]} 3. e4 {[%clk 0:02:40]}  Nf6 {[%clk 0:00:54]} 4. Nc3 {[%clk 0:02:40]}  d6 {[%clk 0:00:55]} 5. Nge2 {[%clk 0:02:40]}  Nbd7 {[%clk 0:00:56]} 6. Ng3 {[%clk 0:02:40]}  e5 {[%clk 0:00:56]} 7. d5 {[%clk 0:02:41]}  a5 {[%clk 0:00:52]} 8. Be2 {[%clk 0:02:41]}  Nc5 {[%clk 0:00:51]} 9. O-O {[%clk 0:02:38]}  h5 {[%clk 0:00:52]} 10. f3 {[%clk 0:02:35]}  h4 {[%clk 0:00:52]} 11. Nh1 {[%clk 0:02:35]}  Nh5 {[%clk 0:00:53]} 12. Be3 {[%clk 0:02:31]}  b6 {[%clk 0:00:47]} 13. Qd2 {[%clk 0:02:31]}  Bd7 {[%clk 0:00:45]} 14. Nf2 {[%clk 0:02:29]}  Nf4 {[%clk 0:00:29]} 15. Bxf4 {[%clk 0:02:28]}  exf4 {[%clk 0:00:30]} 16. Qxf4 {[%clk 0:02:28]}  Bh6 {[%clk 0:00:30]} 17. Qxh6 {[%clk 0:02:05]}  Rxh6 {[%clk 0:00:31]} 18. h3 {[%clk 0:02:02]}  Qg5 {[%clk 0:00:31]} 19. Rad1 {[%clk 0:01:50]}  f5 {[%clk 0:00:28]} 20. Kh1 {[%clk 0:01:35]}  Qg3 {[%clk 0:00:26]} 21. Nd3 {[%clk 0:01:26]}  Rh5 {[%clk 0:00:18]} 22. f4 {[%clk 0:01:09]}  fxe4 {[%clk 0:00:18]} 23. Nxc5 {[%clk 0:01:08]}  bxc5 {[%clk 0:00:09]} 24. Bxh5 {[%clk 0:01:08]}  gxh5 {[%clk 0:00:04]} 25. Nxe4 {[%clk 0:01:08]}  Qg7 {[%clk 0:00:05]} 26. f5 {[%clk 0:01:05]}  O-O-O {[%clk 0:00:05]} 27. f6 {[%clk 0:01:05]}  Qg6 {[%clk 0:00:06]} 28. Nc3 {[%clk 0:00:49]}  Bf5 {[%clk 0:00:06]} 29. Rf4 {[%clk 0:00:47]}  Rf8 {[%clk 0:00:04]} 30. Rdf1 {[%clk 0:00:47]}  Rxf6 {[%clk 0:00:05]} 31. R1f2 {[%clk 0:00:25]}  Qg5 {[%clk 0:00:05]} 32. Ne4 {[%clk 0:00:22]}  Bxe4 {[%clk 0:00:05]} 33. Rxf6 {[%clk 0:00:22]}  Bxg2+ {[%clk 0:00:06]} 34. Kh2 {[%clk 0:00:15]}  Qg3+ {[%clk 0:00:06]} 35. Kg1 {[%clk 0:00:15]}  Bxh3+ {[%clk 0:00:06]} 36. Kh1 {[%clk 0:00:14]}  Bg4 {[%clk 0:00:07]} 37. Rf8+ {[%clk 0:00:14]}  Kb7 {[%clk 0:00:08]} 38. R8f7 {[%clk 0:00:13]}  h3 {[%clk 0:00:08]} 39. R7f6 {[%clk 0:00:11]}  h2 {[%clk 0:00:09]} 40. b3 {[%clk 0:00:08]}  Qg1# {[%clk 0:00:08]} 0-1


[Site "https://www.chess.com"]

[Event "Titled Tuesday Blitz December 06 Early 2022"]
[White "Vlassov, Nikolai"]
[Black "Mikhailovsky, Vladimir"]
[WhiteFideId "4103360"]
[BlackFideId "34105414"]
[WhiteElo "2545"]
[BlackElo "2762"]
[Result "0-1"]
[Round "07"]
[TimeControl "180+1"]
[Date "2022.12.07"]
[WhiteClock "0:01:02"]
[BlackClock "0:00:44"]

1. e4 {[%clk 0:03:00]}  Nf6 {[%clk 0:02:44]} 2. e5 {[%clk 0:03:00]}  Nd5 {[%clk 0:02:43]} 3. d4 {[%clk 0:03:00]}  d6 {[%clk 0:02:42]} 4. c4 {[%clk 0:03:01]}  Nb6 {[%clk 0:02:42]} 5. exd6 {[%clk 0:03:01]}  exd6 {[%clk 0:02:43]} 6. h3 {[%clk 0:03:02]}  Be7 {[%clk 0:02:43]} 7. Nf3 {[%clk 0:03:02]}  O-O {[%clk 0:02:42]} 8. Bd3 {[%clk 0:03:03]}  Nc6 {[%clk 0:02:26]} 9. a3 {[%clk 0:02:53]}  Bf6 {[%clk 0:02:22]} 10. Be3 {[%clk 0:02:53]}  d5 {[%clk 0:02:20]} 11. c5 {[%clk 0:02:48]}  Nc4 {[%clk 0:02:20]} 12. Qc2 {[%clk 0:02:27]}  Nxe3 {[%clk 0:02:12]} 13. fxe3 {[%clk 0:02:27]}  Re8 {[%clk 0:02:09]} 14. O-O {[%clk 0:02:18]}  Rxe3 {[%clk 0:02:03]} 15. Bxh7+ {[%clk 0:02:15]}  Kh8 {[%clk 0:02:03]} 16. Qd2 {[%clk 0:01:59]}  Rxf3 {[%clk 0:01:55]} 17. Rxf3 {[%clk 0:01:58]}  Kxh7 {[%clk 0:01:44]} 18. Nc3 {[%clk 0:01:50]}  Nxd4 {[%clk 0:01:40]} 19. Rff1 {[%clk 0:01:36]}  c6 {[%clk 0:01:33]} 20. Rae1 {[%clk 0:01:32]}  Kg8 {[%clk 0:01:03]} 21. b4 {[%clk 0:01:26]}  Bf5 {[%clk 0:00:53]} 22. Ne2 {[%clk 0:01:20]}  Nxe2+ {[%clk 0:00:52]} 23. Rxe2 {[%clk 0:01:17]}  Be4 {[%clk 0:00:53]} 24. Kh1 {[%clk 0:01:10]}  Be5 {[%clk 0:00:47]} 25. Qe3 {[%clk 0:01:03]}  Qh4 {[%clk 0:00:47]} 26. Ref2 {[%clk 0:01:02]}  Bg3 {[%clk 0:00:44]} 0-1


[Site "https://www.chess.com"]